[Event "*** Titled Tuesday Blitz"]
[Site "Chess.com"]
[Date "2020.12.29"]
[Round "10"]
[White "nitpicker"]
[Black "Loy_Konstantin"]
[Result "0-1"]
[WhiteElo "2247"]
[BlackElo "2383"]
[TimeControl "180+1"]
[EndTime "11:54:43 PST"]
[Termination "Loy_Konstantin won by resignation"]

1. d4 {[%clk 0:03:00.9]} 1... Nf6 {[%clk 0:02:59.8]} 2. c4 {[%clk 0:03:00.6]}
2... c5 {[%clk 0:02:59.7]} 3. d5 {[%clk 0:03:00.4]} 3... b5 {[%clk 0:03:00.2]}
4. cxb5 {[%clk 0:03:00.7]} 4... a6 {[%clk 0:03:00.7]} 5. bxa6 {[%clk 0:03:01.4]}
5... Bxa6 {[%clk 0:03:01.1]} 6. Nc3 {[%clk 0:03:01.6]} 6... g6 {[%clk
0:03:01.5]} 7. Nf3 {[%clk 0:03:01.7]} 7... d6 {[%clk 0:03:01]} 8. e4 {[%clk
0:03:02.2]} 8... Bxf1 {[%clk 0:03:00.4]} 9. Kxf1 {[%clk 0:03:03.1]} 9... Nbd7
{[%clk 0:03:00.5]} 10. g3 {[%clk 0:03:03.3]} 10... Bg7 {[%clk 0:03:01]} 11. Kg2
{[%clk 0:03:03.8]} 11... O-O {[%clk 0:03:01.5]} 12. a4 {[%clk 0:03:02.9]} 12...
Qb6 {[%clk 0:03:01.6]} 13. Qe2 {[%clk 0:02:58.5]} 13... Qa6 {[%clk 0:02:52.3]}
14. Qxa6 {[%clk 0:02:35.8]} 14... Rxa6 {[%clk 0:02:53.2]} 15. Re1 {[%clk
0:02:35.3]} 15... Ng4 {[%clk 0:02:43.5]} 16. Bg5 {[%clk 0:02:35.3]} 16... Re8
{[%clk 0:02:05.8]} 17. Nb5 {[%clk 0:02:20.2]} 17... Rb6 {[%clk 0:01:32]} 18. Ra2
{[%clk 0:01:50.5]} 18... h6 {[%clk 0:01:30.9]} 19. Bd2 {[%clk 0:01:44.2]} 19...
Ra8 {[%clk 0:01:11.5]} 20. Rea1 {[%clk 0:01:38.3]} 20... c4 {[%clk 0:00:39.6]}
21. Nfd4 {[%clk 0:01:27.7]} 21... Nc5 {[%clk 0:00:32.4]} 22. f3 {[%clk
0:01:14.6]} 22... Ne5 {[%clk 0:00:30]} 23. Bc3 {[%clk 0:01:06]} 23... Ned3
{[%clk 0:00:19.1]} 24. Nc6 {[%clk 0:00:56.9]} 24... Kf8 {[%clk 0:00:18.5]} 25.
Bxg7+ {[%clk 0:00:53.8]} 25... Kxg7 {[%clk 0:00:19.4]} 26. Nxe7 {[%clk
0:00:54.2]} 26... Nb3 {[%clk 0:00:19.2]} 27. Nd4 {[%clk 0:00:12.6]} 27... Nxa1
{[%clk 0:00:17.1]} 28. Rxa1 {[%clk 0:00:11.8]} 28... Rxb2+ {[%clk 0:00:17.4]}
29. Kg1 {[%clk 0:00:12.1]} 29... c3 {[%clk 0:00:17.7]} 30. Nec6 {[%clk
0:00:11.1]} 30... c2 {[%clk 0:00:16.7]} 31. Ne2 {[%clk 0:00:10.3]} 31... Rb1+
{[%clk 0:00:16.7]} 0-1

[Event "*** Titled Tuesday Blitz"]
[Site "Chess.com"]
[Date "2020.12.29"]
[Round "10"]
[White "szachuspl"]
[Black "ZiggyStardust64"]
[Result "1-0"]
[WhiteElo "2504"]
[BlackElo "2662"]
[TimeControl "180+1"]
[EndTime "11:54:50 PST"]
[Termination "szachuspl won by resignation"]

1. d4 {[%clk 0:03:00.9]} 1... d5 {[%clk 0:03:00]} 2. c4 {[%clk 0:03:01]} 2... e6
{[%clk 0:03:00.4]} 3. Nc3 {[%clk 0:03:01.1]} 3... Nf6 {[%clk 0:03:01.1]} 4. Nf3
{[%clk 0:03:01.3]} 4... c5 {[%clk 0:03:00.2]} 5. cxd5 {[%clk 0:03:01.3]} 5...
cxd4 {[%clk 0:03:00.7]} 6. Nxd4 {[%clk 0:03:00.1]} 6... Nxd5 {[%clk 0:03:00.6]}
7. Bd2 {[%clk 0:02:52.6]} 7... Be7 {[%clk 0:02:59.6]} 8. e4 {[%clk 0:02:52.4]}
8... Nf6 {[%clk 0:02:54.4]} 9. Be3 {[%clk 0:02:49.6]} 9... O-O {[%clk
0:02:52.3]} 10. Be2 {[%clk 0:02:49.6]} 10... Bb4 {[%clk 0:02:49.5]} 11. f3
{[%clk 0:02:44]} 11... Qa5 {[%clk 0:02:40.2]} 12. Qb3 {[%clk 0:02:33.6]} 12...
Nbd7 {[%clk 0:02:34.5]} 13. O-O {[%clk 0:02:25.6]} 13... Nc5 {[%clk 0:02:33.9]}
14. Qc2 {[%clk 0:02:25.6]} 14... Bd7 {[%clk 0:02:29.5]} 15. Rfc1 {[%clk
0:02:22.7]} 15... Rac8 {[%clk 0:02:21.5]} 16. a3 {[%clk 0:02:21.6]} 16... Bxc3
{[%clk 0:02:21.7]} 17. Qxc3 {[%clk 0:02:21.1]} 17... Qxc3 {[%clk 0:02:22.3]} 18.
Rxc3 {[%clk 0:02:21.1]} 18... Na4 {[%clk 0:02:22.9]} 19. Rb3 {[%clk 0:02:16.7]}
19... Nc5 {[%clk 0:02:20.1]} 20. Rc3 {[%clk 0:02:13.3]} 20... Na4 {[%clk
0:02:20.3]} 21. Rxc8 {[%clk 0:02:05.7]} 21... Rxc8 {[%clk 0:02:21.2]} 22. b3
{[%clk 0:02:04.7]} 22... Nc3 {[%clk 0:02:03.4]} 23. Bf1 {[%clk 0:02:03.3]} 23...
e5 {[%clk 0:02:03.6]} 24. Nf5 {[%clk 0:01:45.3]} 24... Bxf5 {[%clk 0:01:49.2]}
25. exf5 {[%clk 0:01:45.5]} 25... b6 {[%clk 0:01:49.9]} 26. Rc1 {[%clk 0:01:40]}
26... Nfd5 {[%clk 0:01:33.2]} 27. Bd2 {[%clk 0:01:40.1]} 27... Rc7 {[%clk
0:01:33.7]} 28. Bc4 {[%clk 0:01:30.3]} 28... Na2 {[%clk 0:00:28.1]} 29. Re1
{[%clk 0:01:11.5]} 29... Nf6 {[%clk 0:00:21.3]} 30. Ra1 {[%clk 0:01:04.5]} 30...
b5 {[%clk 0:00:20.7]} 31. Bxb5 {[%clk 0:01:00.2]} 31... Rc2 {[%clk 0:00:20.8]}
32. Rd1 {[%clk 0:00:51.4]} 32... h6 {[%clk 0:00:17.4]} 33. Be3 {[%clk
0:00:41.4]} 33... Kh7 {[%clk 0:00:15]} 34. Bc4 {[%clk 0:00:35.3]} 34... e4
{[%clk 0:00:12.7]} 35. Bxa7 {[%clk 0:00:32.5]} 35... Nc3 {[%clk 0:00:09.9]} 36.
Re1 {[%clk 0:00:31.2]} 36... exf3 {[%clk 0:00:10.3]} 37. gxf3 {[%clk 0:00:31.5]}
37... Nh5 {[%clk 0:00:08.2]} 38. f6 {[%clk 0:00:31.4]} 38... Nxf6 {[%clk
0:00:08.2]} 39. Bd3+ {[%clk 0:00:31]} 1-0

[Event "*** Titled Tuesday Blitz"]
[Site "Chess.com"]
[Date "2020.12.29"]
[Round "10"]
[White "Natalya_Buksa"]
[Black "IMUffeVinther-Schou"]
[Result "1-0"]
[WhiteElo "2549"]
[BlackElo "2408"]
[TimeControl "180+1"]
[EndTime "11:54:51 PST"]
[Termination "Natalya_Buksa won on time"]

1. d4 {[%clk 0:03:00.9]} 1... Nf6 {[%clk 0:02:59.4]} 2. Nc3 {[%clk 0:03:01.2]}
2... e6 {[%clk 0:03:00.3]} 3. a3 {[%clk 0:02:56.7]} 3... d5 {[%clk 0:02:57.2]}
4. Bf4 {[%clk 0:02:56.4]} 4... Bd6 {[%clk 0:02:51.9]} 5. e3 {[%clk 0:02:56.1]}
5... O-O {[%clk 0:02:42.7]} 6. Qf3 {[%clk 0:02:55.9]} 6... c5 {[%clk 0:02:38.6]}
7. g4 {[%clk 0:02:46]} 7... cxd4 {[%clk 0:02:21.7]} 8. exd4 {[%clk 0:02:46.1]}
8... Nc6 {[%clk 0:02:21.1]} 9. O-O-O {[%clk 0:02:44.8]} 9... e5 {[%clk
0:02:13.8]} 10. dxe5 {[%clk 0:02:44]} 10... Bxg4 {[%clk 0:02:12.3]} 11. Qg3
{[%clk 0:02:43.7]} 11... Bxd1 {[%clk 0:02:04.7]} 12. exf6 {[%clk 0:02:40.8]}
12... Bxf4+ {[%clk 0:02:03.2]} 13. Qxf4 {[%clk 0:02:40.5]} 13... Bh5 {[%clk
0:01:56.2]} 14. fxg7 {[%clk 0:02:40.5]} 14... Re8 {[%clk 0:01:48.6]} 15. Bd3
{[%clk 0:02:40.2]} 15... Re1+ {[%clk 0:01:42.4]} 16. Kd2 {[%clk 0:02:40.1]}
16... Qe7 {[%clk 0:01:26.2]} 17. Nce2 {[%clk 0:02:36.2]} 17... Rb1 {[%clk
0:01:12.5]} 18. h4 {[%clk 0:02:27.1]} 18... Ne5 {[%clk 0:01:04.8]} 19. Rh3
{[%clk 0:02:18.2]} 19... Nc4+ {[%clk 0:01:01.1]} 20. Bxc4 {[%clk 0:02:16.4]}
20... dxc4 {[%clk 0:01:00.5]} 21. Kc3 {[%clk 0:02:15]} 21... Rd8 {[%clk
0:00:28.3]} 22. Re3 {[%clk 0:02:13.8]} 22... Qd7 {[%clk 0:00:26.8]} 23. Re5
{[%clk 0:02:00.4]} 23... Bg6 {[%clk 0:00:24.5]} 24. Nf3 {[%clk 0:02:00.1]} 24...
Bxc2 {[%clk 0:00:20]} 25. Ned4 {[%clk 0:01:46.8]} 25... Bg6 {[%clk 0:00:15.9]}
26. h5 {[%clk 0:01:46.9]} 26... Bd3 {[%clk 0:00:14.3]} 27. Qf6 {[%clk
0:01:27.7]} 27... a6 {[%clk 0:00:07.9]} 28. Re7 {[%clk 0:00:52.8]} 28... Qd5
{[%clk 0:00:07.3]} 29. Qe5 {[%clk 0:00:52.3]} 29... Rc1+ {[%clk 0:00:06.2]} 30.
Kd2 {[%clk 0:00:51.9]} 30... Qxe5 {[%clk 0:00:04.7]} 31. Nxe5 {[%clk 0:00:44.7]}
31... Rf1 {[%clk 0:00:04.2]} 32. Ke3 {[%clk 0:00:40.1]} 32... Kxg7 {[%clk
0:00:02.5]} 33. Rxf7+ {[%clk 0:00:37.2]} 33... Kh6 {[%clk 0:00:02.2]} 34. Ne6
{[%clk 0:00:32.5]} 34... Kxh5 {[%clk 0:00:01.4]} 35. Rxh7+ {[%clk 0:00:32]} 1-0

[Event "*** Titled Tuesday Blitz"]
[Site "Chess.com"]
[Date "2020.12.29"]
[Round "10"]
[White "FMalexhdez"]
[Black "MuhittinBuker"]
[Result "1/2-1/2"]
[WhiteElo "2264"]
[BlackElo "2124"]
[TimeControl "180+1"]
[EndTime "11:54:51 PST"]
[Termination "Game drawn by repetition"]

1. e4 {[%clk 0:03:00.9]} 1... e5 {[%clk 0:02:59.6]} 2. Nf3 {[%clk 0:03:00]} 2...
Nc6 {[%clk 0:03:00]} 3. Bc4 {[%clk 0:03:00.5]} 3... Nf6 {[%clk 0:02:59.9]} 4. d3
{[%clk 0:03:00.7]} 4... Bc5 {[%clk 0:03:00.2]} 5. c3 {[%clk 0:02:58.6]} 5... a6
{[%clk 0:03:00.4]} 6. Nbd2 {[%clk 0:02:56.5]} 6... d6 {[%clk 0:03:00.8]} 7. Bb3
{[%clk 0:02:45.8]} 7... O-O {[%clk 0:02:58.7]} 8. Qe2 {[%clk 0:02:45.6]} 8... h6
{[%clk 0:02:58.8]} 9. h3 {[%clk 0:02:45.2]} 9... Be6 {[%clk 0:02:56.9]} 10. g4
{[%clk 0:02:42.6]} 10... Bxb3 {[%clk 0:02:55.9]} 11. axb3 {[%clk 0:02:42.7]}
11... Nh7 {[%clk 0:02:54.1]} 12. Nf1 {[%clk 0:02:41.8]} 12... d5 {[%clk
0:02:53.7]} 13. Ng3 {[%clk 0:02:41.3]} 13... dxe4 {[%clk 0:02:50.3]} 14. dxe4
{[%clk 0:02:40.4]} 14... Be7 {[%clk 0:02:49.9]} 15. h4 {[%clk 0:02:33.4]} 15...
Qc8 {[%clk 0:02:42.9]} 16. Nf5 {[%clk 0:02:30.5]} 16... Bc5 {[%clk 0:02:39.4]}
17. Rg1 {[%clk 0:02:15.1]} 17... Qe6 {[%clk 0:02:31.6]} 18. h5 {[%clk
0:01:47.5]} 18... f6 {[%clk 0:02:22.9]} 19. N3h4 {[%clk 0:01:39.5]} 19... Rfd8
{[%clk 0:02:21.4]} 20. Ng6 {[%clk 0:01:36.5]} 20... Qxb3 {[%clk 0:02:14.8]} 21.
Nxh6+ {[%clk 0:01:07.7]} 21... gxh6 {[%clk 0:02:13.1]} 22. Bxh6 {[%clk
0:01:07.5]} 22... Qb5 {[%clk 0:02:03.6]} 23. Qf3 {[%clk 0:00:57.8]} 23... Qd3
{[%clk 0:01:58]} 24. Qf5 {[%clk 0:00:54.8]} 24... Qc2 {[%clk 0:01:49.9]} 25. Nh4
{[%clk 0:00:29.8]} 25... Bxf2+ {[%clk 0:01:33.3]} 26. Qxf2 {[%clk 0:00:28.5]}
26... Qxf2+ {[%clk 0:01:32.7]} 27. Kxf2 {[%clk 0:00:29]} 27... Ng5 {[%clk
0:01:29.6]} 28. Bxg5 {[%clk 0:00:26.7]} 28... fxg5 {[%clk 0:01:28.8]} 29. Ke3
{[%clk 0:00:26.7]} 29... gxh4 {[%clk 0:01:27.2]} 30. g5 {[%clk 0:00:26.8]} 30...
Rd7 {[%clk 0:01:23.4]} 31. h6 {[%clk 0:00:20.8]} 31... Kh7 {[%clk 0:01:20.4]}
32. Raf1 {[%clk 0:00:16.7]} 32... Rad8 {[%clk 0:01:19.2]} 33. Rf6 {[%clk
0:00:08.9]} 33... Rd3+ {[%clk 0:01:16.7]} 34. Ke2 {[%clk 0:00:09.4]} 34... Rd2+
{[%clk 0:01:15.9]} 35. Kf1 {[%clk 0:00:08.9]} 35... h3 {[%clk 0:01:13.2]} 36.
g6+ {[%clk 0:00:07.7]} 36... Kh8 {[%clk 0:01:07.5]} 37. g7+ {[%clk 0:00:04.1]}
37... Kh7 {[%clk 0:01:06.8]} 38. Rf8 {[%clk 0:00:04.2]} 38... Rd1+ {[%clk
0:00:52]} 39. Kf2 {[%clk 0:00:04.1]} 39... R8d2+ {[%clk 0:00:47.8]} 40. Ke3
{[%clk 0:00:04]} 40... Rd3+ {[%clk 0:00:47.4]} 41. Ke2 {[%clk 0:00:03.5]} 41...
R1d2+ {[%clk 0:00:46.3]} 42. Ke1 {[%clk 0:00:03.4]} 42... Rd1+ {[%clk 0:00:46]}
43. Ke2 {[%clk 0:00:03.7]} 43... R1d2+ {[%clk 0:00:41.5]} 44. Ke1 {[%clk
0:00:04]} 44... Rd1+ {[%clk 0:00:41.4]} 45. Ke2 {[%clk 0:00:04.3]} 1/2-1/2

[Event "*** Titled Tuesday Blitz"]
[Site "Chess.com"]
[Date "2020.12.29"]
[Round "10"]
[White "Lady_Nika"]
[Black "Mikhail_Golubev"]
[Result "0-1"]
[WhiteElo "2330"]
[BlackElo "2514"]
[TimeControl "180+1"]
[EndTime "11:54:53 PST"]
[Termination "Mikhail_Golubev won by checkmate"]

1. d4 {[%clk 0:03:00.9]} 1... Nf6 {[%clk 0:02:59.3]} 2. e3 {[%clk 0:03:00.8]}
2... g6 {[%clk 0:02:59]} 3. f4 {[%clk 0:03:00.7]} 3... Bg7 {[%clk 0:02:59.6]} 4.
Nf3 {[%clk 0:03:00.9]} 4... O-O {[%clk 0:02:58.2]} 5. c3 {[%clk 0:03:01.3]} 5...
d6 {[%clk 0:02:58.3]} 6. Be2 {[%clk 0:03:01.4]} 6... Nbd7 {[%clk 0:02:58.3]} 7.
O-O {[%clk 0:03:01.6]} 7... Re8 {[%clk 0:02:55.2]} 8. Na3 {[%clk 0:03:01.4]}
8... e5 {[%clk 0:02:49.9]} 9. Nc2 {[%clk 0:02:57.4]} 9... exf4 {[%clk
0:02:47.7]} 10. exf4 {[%clk 0:02:57.1]} 10... Nf8 {[%clk 0:02:47.7]} 11. Bd3
{[%clk 0:02:57]} 11... b6 {[%clk 0:02:43.8]} 12. Bd2 {[%clk 0:02:56.4]} 12...
Bb7 {[%clk 0:02:43.8]} 13. Re1 {[%clk 0:02:54.9]} 13... Qd7 {[%clk 0:02:43.1]}
14. Rxe8 {[%clk 0:02:54.2]} 14... Rxe8 {[%clk 0:02:42.6]} 15. Qf1 {[%clk
0:02:54.8]} 15... Be4 {[%clk 0:02:37.6]} 16. Re1 {[%clk 0:02:53.9]} 16... Qf5
{[%clk 0:02:17.5]} 17. Bxe4 {[%clk 0:02:51.5]} 17... Rxe4 {[%clk 0:02:10]} 18.
Rxe4 {[%clk 0:02:35.2]} 18... Qxe4 {[%clk 0:02:05.1]} 19. Nce1 {[%clk
0:02:32.6]} 19... Ne6 {[%clk 0:02:01.6]} 20. Qd3 {[%clk 0:02:25.3]} 20... Qd5
{[%clk 0:01:53.3]} 21. h3 {[%clk 0:02:22.2]} 21... Qxa2 {[%clk 0:01:46.8]} 22.
b4 {[%clk 0:02:20]} 22... a5 {[%clk 0:01:37.5]} 23. f5 {[%clk 0:02:16.4]} 23...
Nf8 {[%clk 0:01:32.7]} 24. fxg6 {[%clk 0:02:15.7]} 24... hxg6 {[%clk 0:01:32.2]}
25. bxa5 {[%clk 0:02:13.3]} 25... bxa5 {[%clk 0:01:31.8]} 26. Bg5 {[%clk
0:02:10.1]} 26... a4 {[%clk 0:01:29.3]} 27. Qc2 {[%clk 0:02:02.9]} 27... Qxc2
{[%clk 0:01:20.9]} 28. Nxc2 {[%clk 0:02:02.3]} 28... Nd5 {[%clk 0:01:20.4]} 29.
Bd2 {[%clk 0:02:00.7]} 29... Nb6 {[%clk 0:01:17.3]} 30. Bc1 {[%clk 0:01:58.6]}
30... Nfd7 {[%clk 0:01:08.8]} 31. Nd2 {[%clk 0:01:51.5]} 31... Nf6 {[%clk
0:01:08]} 32. c4 {[%clk 0:01:49.1]} 32... d5 {[%clk 0:01:02.3]} 33. c5 {[%clk
0:01:47.7]} 33... Nc4 {[%clk 0:01:02.1]} 34. Nxc4 {[%clk 0:01:46.9]} 34... dxc4
{[%clk 0:01:01.4]} 35. Kf2 {[%clk 0:01:47]} 35... Nd5 {[%clk 0:01:00.6]} 36. Bb2
{[%clk 0:01:43.5]} 36... Kf8 {[%clk 0:00:57.8]} 37. Kf3 {[%clk 0:01:42.1]} 37...
Ke8 {[%clk 0:00:47.7]} 38. Na3 {[%clk 0:01:23.1]} 38... c3 {[%clk 0:00:45.5]}
39. Bc1 {[%clk 0:01:21.6]} 39... Kd7 {[%clk 0:00:39.8]} 40. Ke4 {[%clk
0:01:20.6]} 40... Nb4 {[%clk 0:00:33.4]} 41. Nc4 {[%clk 0:01:16]} 41... f5+
{[%clk 0:00:32.5]} 42. Kf3 {[%clk 0:01:12.8]} 42... Bxd4 {[%clk 0:00:29.9]} 43.
Ba3 {[%clk 0:01:10.3]} 43... Bxc5 {[%clk 0:00:24.9]} 44. Ke2 {[%clk 0:01:07]}
44... Ke6 {[%clk 0:00:24.6]} 45. Kd1 {[%clk 0:01:00.4]} 45... Kd5 {[%clk
0:00:23]} 46. Bxb4 {[%clk 0:00:56.6]} 46... Kxc4 {[%clk 0:00:22]} 47. Bxc5
{[%clk 0:00:53.6]} 47... Kxc5 {[%clk 0:00:21.8]} 48. Kc2 {[%clk 0:00:53.8]}
48... Kb4 {[%clk 0:00:21.9]} 49. g3 {[%clk 0:00:53.7]} 49... a3 {[%clk
0:00:21.6]} 50. Kb1 {[%clk 0:00:52.7]} 50... Kb3 {[%clk 0:00:21.7]} 51. g4
{[%clk 0:00:52.5]} 51... a2+ {[%clk 0:00:21.8]} 52. Kc1 {[%clk 0:00:52.8]} 52...
a1=R# {[%clk 0:00:18.7]} 0-1

[Event "*** Titled Tuesday Blitz"]
[Site "Chess.com"]
[Date "2020.12.29"]
[Round "10"]
[White "GM4life"]
[Black "Homino"]
[Result "1-0"]
[WhiteElo "2441"]
[BlackElo "2298"]
[TimeControl "180+1"]
[EndTime "11:54:53 PST"]
[Termination "GM4life won on time"]

1. e4 {[%clk 0:03:00.9]} 1... c5 {[%clk 0:02:58.8]} 2. Nf3 {[%clk 0:03:00.8]}
2... Nc6 {[%clk 0:02:58.9]} 3. d4 {[%clk 0:03:01.4]} 3... cxd4 {[%clk
0:02:59.8]} 4. Nxd4 {[%clk 0:03:02]} 4... g6 {[%clk 0:03:00.2]} 5. c4 {[%clk
0:03:01.7]} 5... Nf6 {[%clk 0:02:59.6]} 6. Nc3 {[%clk 0:03:01.4]} 6... Nxd4
{[%clk 0:02:59.3]} 7. Qxd4 {[%clk 0:03:01.2]} 7... d6 {[%clk 0:02:59.9]} 8. Be2
{[%clk 0:03:01.7]} 8... Bg7 {[%clk 0:03:00.4]} 9. Bg5 {[%clk 0:03:02.3]} 9...
O-O {[%clk 0:03:00.5]} 10. Qd2 {[%clk 0:03:01.6]} 10... Be6 {[%clk 0:02:59.9]}
11. Rd1 {[%clk 0:03:01.5]} 11... a5 {[%clk 0:02:59.8]} 12. b3 {[%clk 0:03:00.8]}
12... a4 {[%clk 0:02:57.8]} 13. e5 {[%clk 0:02:58]} 13... dxe5 {[%clk
0:02:50.9]} 14. Qxd8 {[%clk 0:02:57.6]} 14... Rfxd8 {[%clk 0:02:39.6]} 15. Rxd8+
{[%clk 0:02:58]} 15... Rxd8 {[%clk 0:02:39.1]} 16. Nxa4 {[%clk 0:02:58.7]} 16...
Kf8 {[%clk 0:02:28.7]} 17. O-O {[%clk 0:02:55.9]} 17... Ne4 {[%clk 0:02:22.7]}
18. Be3 {[%clk 0:02:55.8]} 18... f5 {[%clk 0:02:18.3]} 19. f3 {[%clk 0:02:53.7]}
19... Nd6 {[%clk 0:02:09.1]} 20. Bb6 {[%clk 0:02:49]} 20... Ra8 {[%clk
0:02:01.8]} 21. Nc5 {[%clk 0:02:39.1]} 21... Bf7 {[%clk 0:01:52.6]} 22. a4
{[%clk 0:02:34.2]} 22... Bh6 {[%clk 0:01:36.6]} 23. Kf2 {[%clk 0:02:30.2]} 23...
Bd2 {[%clk 0:01:15.8]} 24. Nd7+ {[%clk 0:02:28.8]} 24... Ke8 {[%clk 0:01:11.5]}
25. Nxe5 {[%clk 0:02:29]} 25... Be6 {[%clk 0:01:04.6]} 26. c5 {[%clk 0:02:29.1]}
26... Nf7 {[%clk 0:00:55.1]} 27. Bb5+ {[%clk 0:02:28.5]} 27... Kf8 {[%clk
0:00:52.7]} 28. Rd1 {[%clk 0:02:12.4]} 28... Bc3 {[%clk 0:00:50.3]} 29. Nd7+
{[%clk 0:02:11]} 29... Kg7 {[%clk 0:00:45.9]} 30. Rd3 {[%clk 0:02:09.4]} 30...
Bb4 {[%clk 0:00:41]} 31. Re3 {[%clk 0:02:03.9]} 31... Bxd7 {[%clk 0:00:33.4]}
32. Bxd7 {[%clk 0:02:04.8]} 32... e5 {[%clk 0:00:31.9]} 33. Rd3 {[%clk
0:01:50.2]} 33... Kf6 {[%clk 0:00:26.3]} 34. Bb5 {[%clk 0:01:45.2]} 34... Rc8
{[%clk 0:00:18.5]} 35. Rd5 {[%clk 0:01:31.6]} 35... e4 {[%clk 0:00:15]} 36. Bd7
{[%clk 0:01:25.8]} 36... Ra8 {[%clk 0:00:11.9]} 37. fxe4 {[%clk 0:01:24]} 37...
fxe4 {[%clk 0:00:12.8]} 38. Rd4 {[%clk 0:01:24]} 38... e3+ {[%clk 0:00:09.8]}
39. Kxe3 {[%clk 0:01:20.3]} 39... Ba3 {[%clk 0:00:08.7]} 40. Re4 {[%clk
0:01:13.8]} 40... Ne5 {[%clk 0:00:07.7]} 41. Bb5 {[%clk 0:01:04.4]} 41... Nc6
{[%clk 0:00:05.6]} 42. Bxc6 {[%clk 0:01:00.6]} 42... bxc6 {[%clk 0:00:06.5]} 43.
Kd2 {[%clk 0:00:55]} 43... Bb2 {[%clk 0:00:05.4]} 44. Kc2 {[%clk 0:00:53.4]}
44... Be5 {[%clk 0:00:04.4]} 45. a5 {[%clk 0:00:53.9]} 45... Bxh2 {[%clk
0:00:04.1]} 46. Rh4 {[%clk 0:00:51.8]} 46... Be5 {[%clk 0:00:02.2]} 47. Rxh7
{[%clk 0:00:51.6]} 1-0

[Event "*** Titled Tuesday Blitz"]
[Site "Chess.com"]
[Date "2020.12.29"]
[Round "10"]
[White "dopolian"]
[Black "elextranjero00"]
[Result "0-1"]
[WhiteElo "2461"]
[BlackElo "2608"]
[TimeControl "180+1"]
[EndTime "11:54:55 PST"]
[Termination "elextranjero00 won by resignation"]

1. e4 {[%clk 0:03:00.9]} 1... c6 {[%clk 0:02:59.5]} 2. Nc3 {[%clk 0:03:00.7]}
2... d5 {[%clk 0:02:59.5]} 3. Nf3 {[%clk 0:03:01.1]} 3... Bg4 {[%clk 0:02:59.6]}
4. h3 {[%clk 0:03:01.3]} 4... Bxf3 {[%clk 0:02:59.9]} 5. Qxf3 {[%clk 0:03:02.2]}
5... e6 {[%clk 0:02:59.8]} 6. d4 {[%clk 0:02:59.6]} 6... dxe4 {[%clk 0:02:58]}
7. Nxe4 {[%clk 0:02:59.2]} 7... Qxd4 {[%clk 0:02:55.7]} 8. Bd3 {[%clk
0:02:59.2]} 8... Nd7 {[%clk 0:02:52.2]} 9. Be3 {[%clk 0:02:58.4]} 9... Qd5
{[%clk 0:02:47.1]} 10. Rd1 {[%clk 0:02:58.7]} 10... Ne5 {[%clk 0:02:35.3]} 11.
Qf4 {[%clk 0:02:58.7]} 11... Qa5+ {[%clk 0:02:05.2]} 12. Ke2 {[%clk 0:02:38.2]}
12... O-O-O {[%clk 0:01:44.9]} 13. Ng5 {[%clk 0:02:20.3]} 13... Nf6 {[%clk
0:01:30.6]} 14. b4 {[%clk 0:01:07.8]} 14... Bxb4 {[%clk 0:01:18.3]} 15. Rb1
{[%clk 0:01:06.6]} 15... Bd6 {[%clk 0:01:16.7]} 16. Qd4 {[%clk 0:00:35.6]} 16...
h6 {[%clk 0:00:55.4]} 17. Ne4 {[%clk 0:00:26.9]} 17... Nxe4 {[%clk 0:00:47.2]}
18. Bxe4 {[%clk 0:00:27.8]} 18... Qa6+ {[%clk 0:00:39.4]} 19. Ke1 {[%clk
0:00:23.8]} 19... Bc7 {[%clk 0:00:32.8]} 20. Qb2 {[%clk 0:00:07.4]} 20... Nc4
{[%clk 0:00:28.2]} 21. Qb3 {[%clk 0:00:04.3]} 21... Nxe3 {[%clk 0:00:19.6]} 22.
fxe3 {[%clk 0:00:05.2]} 22... Bb6 {[%clk 0:00:18.1]} 23. Kf2 {[%clk 0:00:03.6]}
23... Qa5 {[%clk 0:00:17.6]} 24. Bf3 {[%clk 0:00:01.8]} 24... Qe5 {[%clk
0:00:17.1]} 25. Kg1 {[%clk 0:00:01.6]} 25... Qxe3+ {[%clk 0:00:16.7]} 26. Qxe3
{[%clk 0:00:01.5]} 26... Bxe3+ {[%clk 0:00:17.6]} 27. Kh2 {[%clk 0:00:02]} 27...
Rd2 {[%clk 0:00:16.7]} 28. Rhe1 {[%clk 0:00:02]} 28... Bf4+ {[%clk 0:00:16.4]}
29. Kh1 {[%clk 0:00:02.6]} 29... Rxc2 {[%clk 0:00:15.5]} 30. Re4 {[%clk
0:00:02.6]} 30... Bc7 {[%clk 0:00:14.4]} 31. Ra4 {[%clk 0:00:02.8]} 31... a5
{[%clk 0:00:13.4]} 32. Rc4 {[%clk 0:00:02.7]} 32... Rxc4 {[%clk 0:00:12.7]} 0-1

[Event "*** Titled Tuesday Blitz"]
[Site "Chess.com"]
[Date "2020.12.29"]
[Round "10"]
[White "Itk04"]
[Black "Nara_Kh"]
[Result "1-0"]
[WhiteElo "2472"]
[BlackElo "2362"]
[TimeControl "180+1"]
[EndTime "11:54:56 PST"]
[Termination "Itk04 won by resignation"]

1. e4 {[%clk 0:03:00.9]} 1... c5 {[%clk 0:02:54.2]} 2. Nf3 {[%clk 0:03:01.2]}
2... d6 {[%clk 0:02:54]} 3. d4 {[%clk 0:03:01.6]} 3... Nf6 {[%clk 0:02:54.2]} 4.
dxc5 {[%clk 0:02:58.1]} 4... Nxe4 {[%clk 0:02:52.8]} 5. cxd6 {[%clk 0:02:58.4]}
5... Nc6 {[%clk 0:02:51.2]} 6. Bd3 {[%clk 0:02:55.7]} 6... Nxd6 {[%clk
0:02:50.7]} 7. O-O {[%clk 0:02:56.3]} 7... e5 {[%clk 0:02:50.9]} 8. Re1 {[%clk
0:02:53.9]} 8... f6 {[%clk 0:02:49.2]} 9. c3 {[%clk 0:02:47.5]} 9... Be7 {[%clk
0:02:38]} 10. Nbd2 {[%clk 0:02:38.8]} 10... O-O {[%clk 0:02:33.5]} 11. Qc2
{[%clk 0:02:38.6]} 11... h6 {[%clk 0:02:00.4]} 12. Nc4 {[%clk 0:02:18.5]} 12...
Bg4 {[%clk 0:01:50.9]} 13. Nh4 {[%clk 0:02:07.4]} 13... e4 {[%clk 0:01:21]} 14.
Bf1 {[%clk 0:01:41.1]} 14... f5 {[%clk 0:01:17.8]} 15. Ng6 {[%clk 0:01:39.6]}
15... Rf6 {[%clk 0:01:17.7]} 16. Nxe7+ {[%clk 0:01:35.5]} 16... Qxe7 {[%clk
0:01:17.6]} 17. Bf4 {[%clk 0:01:35.1]} 17... Nxc4 {[%clk 0:01:15.1]} 18. Bxc4+
{[%clk 0:01:36]} 18... Kh8 {[%clk 0:01:14.8]} 19. b4 {[%clk 0:01:23.9]} 19...
Rg6 {[%clk 0:01:12.5]} 20. Bg3 {[%clk 0:01:07.1]} 20... Qg5 {[%clk 0:00:52.5]}
21. Qc1 {[%clk 0:00:56.7]} 21... Qe7 {[%clk 0:00:41.6]} 22. Qf4 {[%clk
0:00:54.8]} 22... Rd8 {[%clk 0:00:29]} 23. f3 {[%clk 0:00:47]} 23... Bh5 {[%clk
0:00:15.8]} 24. Qxf5 {[%clk 0:00:46.2]} 24... Rg5 {[%clk 0:00:16.3]} 25. Qxe4
{[%clk 0:00:46.4]} 25... Qf6 {[%clk 0:00:16.4]} 26. Qe3 {[%clk 0:00:32.1]} 26...
Re8 {[%clk 0:00:13.3]} 27. Qxe8+ {[%clk 0:00:21]} 27... Bxe8 {[%clk 0:00:12.6]}
28. Rxe8+ {[%clk 0:00:21.9]} 28... Kh7 {[%clk 0:00:13]} 29. Bg8+ {[%clk
0:00:22.8]} 29... Kg6 {[%clk 0:00:13.1]} 30. Re6 {[%clk 0:00:23.4]} 30... Rf5
{[%clk 0:00:12.9]} 31. Rae1 {[%clk 0:00:21.6]} 31... Kg5 {[%clk 0:00:10.1]} 32.
Rxf6 {[%clk 0:00:20.9]} 32... Rxf6 {[%clk 0:00:10.6]} 33. Bd5 {[%clk 0:00:20.8]}
33... Kf5 {[%clk 0:00:10.6]} 34. Be4+ {[%clk 0:00:20.3]} 34... Kg5 {[%clk
0:00:10.9]} 35. Bxc6 {[%clk 0:00:20.6]} 35... b6 {[%clk 0:00:10.4]} 36. Re5+
{[%clk 0:00:20.2]} 36... Kg6 {[%clk 0:00:10.4]} 37. Be8+ {[%clk 0:00:20.4]}
37... Kh7 {[%clk 0:00:10.4]} 38. Re7 {[%clk 0:00:20.9]} 1-0